Cogmind - Beta 13 @@@ ROGUE MODE // 2024.04.09 @ 17:49:21 Player: bennydictor Result: Destroyed by D-53 Grenadier with Mini Grenade Launcher Performance ------------- Evolutions (0) 0 Regions Visited (4) 800 Robots Destroyed (22) 110 Value Destroyed (548) 548 Prototype IDs (1) 20 Alien Tech Used (0) 0 Bonus (300) 300 TOTAL SCORE: 1778 Bonus ------- Aligned with FarCom 300 Cogmind --------- Core Integrity 0/250 Matter 300/300 Energy 250/250 System Corruption 0% Temperature Cool (0) Movement Walking (190) Ox1 Location -9/Mines Parts ------- > --- POWER (1) -------- Ion Engine > --- PROPULSION (2) --- Aluminum Leg Aluminum Leg > --- UTILITY (2) ------ Large Storage Unit Signal Interpreter > --- WEAPON (2) ------- EM Pulse Gun Latent Energy Streamer > --- INVENTORY (15) --- Light Ion Engine Light Nuclear Core Aluminum Leg Aluminum Leg Improved Heat Sink Large Storage Unit Huge Storage Unit Medium Matter Pod (71) Visual Processing Unit Trap Extractor (0/4) Field Recycling Unit (0) EMP Blaster EMP Blaster Rocket Launcher Enhanced Flamer Peak State ------------ > --- POWER ------------ Ion Engine > --- PROPULSION ------- Aluminum Leg Aluminum Leg > --- UTILITY ---------- Large Storage Unit Signal Interpreter > --- WEAPON ----------- Latent Energy Streamer EMP Blaster > --- INVENTORY -------- Light Ion Engine Light Nuclear Core Aluminum Leg Aluminum Leg Improved Heat Sink Large Storage Unit Huge Storage Unit Medium Matter Pod Visual Processing Unit Field Recycling Unit EM Pulse Gun EMP Blaster Flail [Rating: 19] Favorites ----------- Power Ion Engine Engine Ion Engine Power Core Light Nuclear Core Propulsion Aluminum Leg Treads Light Treads Leg Aluminum Leg Utility Large Storage Unit Storage Large Storage Unit Processor Signal Interpreter Weapon EM Pulse Gun Energy Gun EM Pulse Gun Energy Cannon Latent Energy Streamer Ballistic Gun Assault Rifle Launcher EMP Blaster Impact Weapon Flail Build | -11 -10 -10 -10 -9 ------- Run | Yrd Mat Min Exi Min Slots Evolved . | . . . . . Power . | . . . . . Propulsion . | . . . . . Utility . | . . . . . Weapon . | . . . . . Parts Attached 19 | 7 10 . . 2 Power 3 | 1 2 . . . Engine 2 | 1 1 . . . Core 1 | . 1 . . . Reactor . | . . . . . Propulsion 5 | 3 2 . . . Treads 1 | 1 . . . . Leg 4 | 2 2 . . . Wheel . | . . . . . Hover . | . . . . . Flight . | . . . . . Utility 3 | 1 2 . . . Device . | . . . . . Storage 2 | 1 1 . . . Processor 1 | . 1 . . . Hackware . | . . . . . Protection . | . . . . . Artifact . | . . . . . Weapon 8 | 2 4 . . 2 Energy Gun 2 | . 1 . . 1 Energy Cannon 1 | . . . . 1 Ballistic Gun 2 | 2 . . . . Ballistic Cannon . | . . . . . Launcher 2 | . 2 . . . Special Weapon . | . . . . . Impact Weapon 1 | . 1 . . . Slashing Weapon . | . . . . . Piercing Weapon . | . . . . . Special Melee Weapon . | . . . . . Unidentified Prototypes 1 | . . . . 1 Parts Lost 5 | . 5 . . . Power 1 | . 1 . . . Propulsion 2 | . 2 . . . Utility . | . . . . . Weapon 2 | . 2 . . . Highest Loss Streak 5 | . 5 . . . To Critical Strikes . | . . . . . Average Slot Usage (%) 99 | . 96 100 100 100 Engine 12 | . 6 14 14 14 Core 1 | . 6 . . . Leg 27 | . 27 28 28 28 Storage 14 | . 14 14 14 14 Processor 13 | . 12 14 14 14 Energy Gun 11 | . 3 14 14 14 Energy Cannon 4 | . . . . 14 Ballistic Gun 5 | . 20 . . . Launcher 7 | . 2 14 14 . Naked Turns . | . . . . . Heaviest Build 37 | 12 32 31 31 37 Greatest Support 20 | 20 20 20 20 20 Greatest Overweight (x) 3 | 3 1 1 1 1 Average Overweight (x) 1 | 1 . 1 1 1 Largest Inventory Capacity 15 | 8 15 15 15 15 Average Capacity 14 | 6 14 15 15 15 Most Carried 15 | 5 14 13 15 15 Average Carried 12 | 3 11 10 13 14 Final Capacity 15 | 8 15 15 15 15 Final Carried 15 | 4 10 12 13 15 Class Distribution -------------------- 100% | Mutant Dominant Class ---------------- Mutant | -10/Materials Mutant | -10/Mines Mutant | -10/Exiles Mutant | -9/Mines Resources | -11 -10 -10 -10 -9 ----------- Run | Yrd Mat Min Exi Min Matter Collected 663 | 255 262 100 . 46 Remotely . | . . . . . Salvage Created 873 | 99 577 174 . 23 Parts 48 | . 30 13 . 5 Haulers Intercepted . | . . . . . Recyclers Shooed 2 | . . 1 . 1 Parts Field Recycled . | . . . . . Retrieved Matter . | . . . . . Parts Self-Destructed . | . . . . . Prevented . | . . . . . Kills | -11 -10 -10 -10 -9 ------- Run | Yrd Mat Min Exi Min Combat Hostiles Destroyed 16 | . 11 5 . . Guns 13 | . 11 2 . . AOE 3 | . . 3 . . Classes Destroyed 6 | 1 3 1 . 1 Worker 2 | . 1 1 . . Tunneler 1 | . . . . 1 Recycler 2 | 1 1 . . . Watcher 1 | . 1 . . . Swarmer 3 | . . 3 . . Grunt 13 | . 11 2 . . Best Kill Streak 6 | 1 3 6 . 1 Combat Bots Only 5 | . 3 5 . . Max Kills in Single Turn 2 | 1 1 2 . 1 Gunslinging . | . . . . . Exploded 2 | . . 2 . . Melee . | . . . . . Uniques/NPCs Destroyed . | . . . . . Combat | -11 -10 -10 -10 -9 -------- Run | Yrd Mat Min Exi Min Hostile Shots Fired 92 | . 71 20 . 1 Missed 28 | . 21 7 . . Damage Taken 928 | . 659 196 . 73 Core 255 | . 101 81 . 73 Absorbed by Shields . | . . . . . Core Remaining (%) 100 | 100 . . . . Volleys Fired 46 | 2 37 6 . 1 Largest 2 | 2 2 2 . 1 Hottest 73 | 40 40 73 . 40 Shots Fired 83 | 4 68 10 . 1 Gun 78 | 4 67 6 . 1 Cannon . | . . . . . Launcher 5 | . 1 4 . . Special . | . . . . . Kinetic 69 | 4 65 . . . Thermal . | . . . . . Explosive . | . . . . . Electromagnetic 14 | . 3 10 . 1 Robot Hit Streak 12 | 4 12 4 . 2 Robot Miss Streak 2 | . 1 2 . . Penetration Max . | . . . . . Secondary Targets . | . . . . . Shots Hit Robots 65 | 4 54 6 . 1 Core Hits 40 | 2 28 9 . 1 Critical Kills 1 | . 1 . . . Critical Parts Destroyed . | . . . . . Critical Strikes 2 | . 1 1 . . Destroy 1 | . 1 . . . Corrupt 1 | . . 1 . . Melee Attacks 4 | . 4 . . . Impact 4 | . 4 . . . Slashing . | . . . . . Piercing . | . . . . . Sneak Attacks . | . . . . . Combat Hostiles . | . . . . . Follow-up Attacks . | . . . . . Damage Inflicted 1298 | 54 775 398 . 71 Guns 739 | 54 624 49 . 12 Cannons . | . . . . . Explosions 465 | . 57 349 . 59 Melee 94 | . 94 . . . Ramming . | . . . . . Kinetic 654 | 54 600 . . . Thermal 148 | . . 89 . 59 Explosive . | . . . . . Electromagnetic 402 | . 81 309 . 12 Impact 94 | . 94 . . . Slashing . | . . . . . Piercing . | . . . . . Highest Corruption . | . . . . . Average Corruption . | . . . . . Corruption Purged . | . . . . . Corruption Blocked . | . . . . . Overload Shots . | . . . . . Overflow Damage 16 | . 9 . . 7 Projectiles . | . . . . . Explosions 16 | . 9 . . 7 Melee . | . . . . . Knockbacks . | . . . . . Impact . | . . . . . Kinetic . | . . . . . Secondary . | . . . . . Self-Inflicted Damage 103 | . 18 62 . 23 Shots 5 | . 1 3 . 1 Rammed . | . . . . . Targets Rammed . | . . . . . Kicked . | . . . . . Crushed . | . . . . . Highest Temperature 60 | . 4 60 . 12 Average Temperature 17 | . 1 30 . 12 Received Heat Transfer 405 | . 357 48 . . Siege Activations . | . . . . . Robots Corrupted . | . . . . . Combat Hostiles . | . . . . . Parts Fried . | . . . . . Impact Corruptions . | . . . . . Robots Melted . | . . . . . Combat Hostiles . | . . . . . Parts Melted . | . . . . . Heat Transferred 200 | . . 100 . 100 Parts Sabotaged . | . . . . . Parts Stolen . | . . . . . Parts Stripped . | . . . . . Power Chain Reactions 3 | . . 2 . 1 Alert | -11 -10 -10 -10 -9 ------- Run | Yrd Mat Min Exi Min Peak Influence 221 | 5 221 168 . 9 Initial 30 | . 3 30 . . Average 50 | 4 105 67 . 4 Maximum Alert Level 1 | . 1 . . . Low Security (%) 92 | 100 77 100 . 100 Level 1 7 | . 22 . . . Level 2 . | . . . . . Level 3 . | . . . . . Level 4 . | . . . . . Level 5 . | . . . . . High Security . | . . . . . Max Security . | . . . . . Squads Dispatched 2 | . 2 . . . Investigation 1 | . 1 . . . Extermination . | . . . . . Reinforcement 1 | . 1 . . . Assault . | . . . . . Garrison . | . . . . . Intercept . | . . . . . Searches Triggered . | . . . . . Construction Impeded . | . . . . . Haulers Reinforced . | . . . . . Active Scanning Responses . | . . . . . Cargo Convoy Interrupts . | . . . . . Stealth | -11 -10 -10 -10 -9 --------- Run | Yrd Mat Min Exi Min Distress Signals . | . . . . . Communications Jammed . | . . . . . Distress Signals . | . . . . . Times Spotted 19 | . 13 5 . 1 Peak Tracking Total 4 | . 4 4 . . Tactical Retreats 1 | . 1 . . . Traps | -11 -10 -10 -10 -9 ------- Run | Yrd Mat Min Exi Min Traps Triggered 1 | . 1 . . . Indirectly . | . . . . . Trap Hack Attempts . | . . . . . Triggered . | . . . . . Disarmed . | . . . . . Reprogrammed . | . . . . . Reused . | . . . . . Traps Extracted . | . . . . . Installed . | . . . . . Triggered . | . . . . . Machines | -11 -10 -10 -10 -9 ---------- Run | Yrd Mat Min Exi Min Machines Disabled . | . . . . . Max in Single Turn . | . . . . . Machines Repaired . | . . . . . Machines Dismantled . | . . . . . Machines Sabotaged . | . . . . . Overloaded Fab Kills . | . . . . . Hacking | -11 -10 -10 -10 -9 --------- Run | Yrd Mat Min Exi Min Machines Accessed 6 | . 4 1 . 1 Terminals 5 | . 3 1 . 1 Fabricators . | . . . . . Repair Stations . | . . . . . Recycling Units 1 | . 1 . . . Scanalyzers . | . . . . . Garrison Access . | . . . . . Total Hacks 16 | . 10 3 . 3 Successful 9 | . 3 3 . 3 Failed 7 | . 7 . . . Catastrophic . | . . . . . Database Lockouts . | . . . . . Manual 5 | . 2 . 3 . Terminals 13 | . 7 3 . 3 Fabricators . | . . . . . Repair Stations . | . . . . . Recycling Units 3 | . 3 . . . Scanalyzers . | . . . . . Garrison Access . | . . . . . Terminal Hacks 7 | . 1 3 . 3 Record 5 | . . 2 . 3 Recycling Unit Index 1 | . 1 . . . Zone Layout 1 | . . 1 . . Fabricator Hacks . | . . . . . Repair Station Hacks . | . . . . . Recycling Unit Hacks 2 | . 2 . . . Report Inventory 1 | . 1 . . . Retrieve Components 1 | . 1 . . . Scanalyzer . | . . . . . Garrison Access Hacks . | . . . . . Unauthorized Hacks . | . . . . . Terminals . | . . . . . Fabricators . | . . . . . Repair Stations . | . . . . . Recycling Units . | . . . . . Scanalyzers . | . . . . . Garrison Access . | . . . . . Data Cores Recovered . | . . . . . Used . | . . . . . Hacking Detections 5 | . 3 1 . 1 Full Trace Events 1 | . . . . 1 Feedback Events . | . . . . . Feedback Blocked . | . . . . . Robot Schematics Acquired . | . . . . . Robots Built . | . . . . . Authchips . | . . . . . Time . | . . . . . Total Robot Build Rating . | . . . . . Part Schematics Acquired . | . . . . . Parts Built . | . . . . . Authchips . | . . . . . Time . | . . . . . Total Part Build Rating . | . . . . . Parts Repaired . | . . . . . Time . | . . . . . Parts Recycled . | . . . . . Recycled Matter . | . . . . . Retrieved Matter . | . . . . . Retrieved Components 9 | . 9 . . . Parts Scanalyzed . | . . . . . Part Schematics Acquired . | . . . . . Parts Damaged . | . . . . . Bothacking | -11 -10 -10 -10 -9 ------------ Run | Yrd Mat Min Exi Min Used RIF Installer . | . . . . . Robots Hacked . | . . . . . Non-combat . | . . . . . Combat . | . . . . . Robot Hacks Applied . | . . . . . Relay Couplers Released . | . . . . . Fabnet Peak Effective % . | . . . . . Robots Rewired . | . . . . . Allies Hacked . | . . . . . Hacks Repelled . | . . . . . Allies | -11 -10 -10 -10 -9 -------- Run | Yrd Mat Min Exi Min Total Allies . | . . . . . Largest Group . | . . . . . Highest-Rated Group . | . . . . . Highest-Rated Ally . | . . . . . Total Orders . | . . . . . Ally Attacks . | . . . . . Total Damage . | . . . . . Kills . | . . . . . Allies Corrupted . | . . . . . Allies Melted . | . . . . . Intel | -11 -10 -10 -10 -9 ------- Run | Yrd Mat Min Exi Min Robot Analysis Total . | . . . . . Derelict Logs Recovered 2 | . . 1 . 1 Drone Launches . | . . . . . Drone Recoveries . | . . . . . Exploration | -11 -10 -10 -10 -9 ------------- Run | Yrd Mat Min Exi Min Turns Passed 2817 | 105 668 415 808 821 Spaces Moved 1383 | 55 268 209 423 428 Core 48 | 48 . . . . Treads 4 | 4 . . . . Legs 1331 | 3 268 209 423 428 Wheels . | . . . . . Hover . | . . . . . Flight . | . . . . . Fastest Speed 50 | 50 120 190 190 190 Average Speed 187 | 149 184 190 190 190 Slowest Speed 200 | 200 190 190 190 190 Overloaded Moves . | . . . . . Propulsion Burnouts . | . . . . . Robots Hopped . | . . . . . Cave-ins Triggered . | . . . . . Exploration Rate (%) 44 | 4 42 41 63 73 Regions Visited 4 Branch Regions 3 Pre-discovered Areas . | . . . . . Known Exits Taken 3 | . 1 1 1 . Unknown Exits Taken 1 | 1 . . . . Scrap Searched 2 | . . . . 2 Spaces Dug . | . . . . . Terrain Destroyed 12 | . . 8 . 4 Melee . | . . . . . Projectile . | . . . . . AOE 12 | . . 8 . 4 Terrain Rammed . | . . . . . Walls Destroyed . | . . . . . Machines Disabled . | . . . . . Actions | -11 -10 -10 -10 -9 --------- Run | Yrd Mat Min Exi Min Total 1522 | 72 368 218 429 435 Wait 31 | 2 29 . . . Move 1379 | 54 267 208 422 428 Hop . | . . . . . Pick Up 33 | 7 16 3 4 3 Fast Attach 4 | 3 1 . . . Attach 9 | 3 6 . . . Detach . | . . . . . Swap 6 | 1 3 . . 2 Drop 10 | . 5 1 3 1 Fire 46 | 2 37 6 . 1 Melee 4 | . 4 . . . Ram . | . . . . . Kick . | . . . . . Crush . | . . . . . Escape Stasis . | . . . . . Rewire . | . . . . . Trap . | . . . . . Miscellaneous . | . . . . . Route ------- -11/Scrapyard -10/Materials (discovered 2 exits: *Mat / *Min) -10/Mines -10/Exiles -9/Mines History --------- Turn | Location | Event 14 | -11/Scrapyard | Discovered new exit (range 15) 106 | -11/Scrapyard | Entered Materials 305 | -10/Materials | Build established: Mutant 386 | -10/Materials | Discovered new exit (range 13) 417 | -10/Materials | Identified exit to Materials 653 | -10/Materials | Lost 5 parts (1p2n2w) 690 | -10/Materials | Discovered new exit (range 9) 756 | -10/Materials | Identified exit to Mines 774 | -10/Materials | Entered Mines 775 | -10/Mines | Met a Derelict bent on vengeance 799 | -10/Mines | Learned Materials emergency access door positions 856 | -10/Mines | Deemed a non-threat by the Exiles lab entrance 856 | -10/Mines | Discovered new exit (range 5) 1062 | -10/Mines | Core integrity fell below 50% 1187 | -10/Mines | Identified exit to Exiles 1189 | -10/Mines | Entered Exiles 1244 | -10/Exiles | Met 8R-AWN 1272 | -10/Exiles | Met EX-HEX 1331 | -10/Exiles | Met EX-BIN 1363 | -10/Exiles | Aligned with FarCom system 1365 | -10/Exiles | Given EX-Vault access code 1540 | -10/Exiles | Met EX-DEC 1607 | -10/Exiles | Discovered new exit (range 14) 1810 | -10/Exiles | Opened EX-Vault 1817 | -10/Exiles | Found Prototype Energy Cannon 1856 | -10/Exiles | Warned to stay clear of 0b10 Research branches 1993 | -10/Exiles | Identified exit to Mines 1997 | -10/Exiles | Left Exiles lab with Latent Energy Streamer 1997 | -10/Exiles | Entered Mines 1997 | -9/Mines | Identified Latent Energy Streamer 2580 | -9/Mines | A weapon hastily lodged in a ceiling crevice suddenly fell to the ground 2581 | -9/Mines | Assembled infested the area 2586 | -9/Mines | Assisted by a Guerilla fighting off Assembled 2592 | -9/Mines | Core integrity fell below 20% 2818 | -9/Mines | Destroyed by D-53 Grenadier with Mini Grenade Launcher Last Messages --------------- 02320_ Found Imp. Hover Unit. 02320_ Found Trap Extractor. 02320_ Found 30 Matter. 02321_ Acquired 30 matter. 02323_ Acquired Trap Extractor. 02326_ Acquired Rocket Launcher. 02371_ K-01 Serf collects debris. 02548_ Acquired derelict log, extracted data. Data stored: Lower Caves entrances (x1). 02580_ An Enh. Flamer has been hastily shoved under some rubble with a note attached: "One is never enough." 02581_ ALERT: Infestation in the mines, dispatching Demolisher response squad. 02584_ Dropped Flail. 02584_ Acquired Enh. Flamer. 02591_ Chain reaction triggered in Lgt. Ion Engine. 02591_ T-07 Excavator destroyed. 02591_ Destroyed Tractor Beam. 02592_ T-07 Excavator destroyed. Map ----- +----------------------------------------------------+ | | | | | | | | | ?????????????????????????????????????? | | ?????????????????????????????????????? | | ?????????????????????????????????????? | | ???????????????????????????????????### | | ?????#######?????????????????????###T# | | ????## ##????????????????????# | | ????# ##???????????????????# | | ????# ###?????????????????# | | ????## ##????????????????# | | ?????###### #????????????????# | | ??????????## ##???????????????### | | ???????????# #??################ | | ???????????# ##?# | | ??????????## ### ############### | | ???????# ## ## #?????????###?# | | ???????# + ## #????????## ### | | ????????# + ## #???????## | | ??????????# #?####### ### | | ?????????## ###### ##?? | | ??????#### ####d ##??? | | ????Y?# #### ###???? | | ??????# @ d ##?????? | | ??????+ #??????? | | ??????+ # ### ##??????? | | ??????# # #?## #???????? | | ????Y?# ?# #??### #????? | | ??????# #????## #???? | | ?????# ?????# #???? | | ?????# ????## #???? | | ?????## ????### ##???? | | ??????# ### ?????# ###????? | | ??????## #??## ????? #??????? | | ???????###????## ???? ? ???? | | ???????????????##### ????? ???? | | ????????????????????????????#### ???? | | ???????????????????????????????# ???? | | ???????????????????????????????# ???? | | ??????????????????????????????? #??? | | ???????????????????????????????# #??? | | ???????????????????????????????# #??? | | ???????????????????????????????# #??? | | ???????????????????????????????# #??? | | ???????????????????????????????# #??? | | ???????????????????????????????# #??# | | ???????????????????????????????# ##?# | | ??????????????????????????????## "### | +----------------------------------------------------+ Best States ------------- Heat Dissipation 25 Energy Generation 14 Energy Capacity 250 Matter Stores 300 Matter Capacity 300 Sight Range 16 Terrain Scan Density 10 Evasion (%) 55 Recoil Reduction 1 Item Schematics ----------------- None Robot Schematics ------------------ None Fabricated ------------ Nothing Alien Tech Used ----------------- None Achievements -------------- Tourist Challenges ------------ None Game ------ Seed SigixVisualExtractor Manual? 0 Play Time 00:31:16 Cumulative 4.7 hours Start 2024.04.09 @ 17:18:39 End 2024.04.09 @ 17:49:21 Sessions 1 Manual Loads 0 Difficulty Rogue Special Mode None Game No. 4 Rogue 4 Adventurer 0 Explorer 0 Win Type - Total 0 Types 0/0/0/0/0/0/0/0/0 Lore% 2 Gallery% 7 Achievement% 8 Wizard Run 0 Options --------- Layout 1 ASCII 0 Keyboard 0 Movement Mouse Keybinds 0 Fullscreen 2 Font 18/SmallcapsGlow Map View 54x44 Zoom Use 0% Tactical HUD 1 Map Filters NONE Filters NONE Steam X RUN: 30de4b85-3fc4-4aaf-9263-cb66c83f45ba